[Event "EYCC Open-U18 2019"]
[Site "Bratislava"]
[Date "2019.08.08"]
[Round "7.11"]
[White "Zeman, Matyas"]
[Black "Petriashvili, Nikoloz"]
[Result "1/2-1/2"]
[ECO "B58"]
[WhiteElo "2275"]
[BlackElo "2451"]
[Annotator "ChessBase"]
[PlyCount "155"]
[EventDate "2019.08.02"]
[EventType "swiss"]
[EventCountry "SVK"]
[SourceTitle "playchess.com"]
[Source "ChessBase"]
[SourceQuality "1"]
[TimeControl "40/5400+30:1800+30"]

1. e4 {[%emt 0:00:00]} c5 {[%emt 0:00:00]} 2. Nf3 {[%emt 0:00:00]} Nc6 {[%emt 0:00:00]} 3. d4 {[%emt 0:00:00]} cxd4 {[%emt 0:00:14]} 4. Nxd4 {[%emt 0:00:05]} Nf6 {[%emt 0:01:36]} 5. Nc3 {[%emt 0:00:07]} d6 {[%emt 0:00:15]} 6. Be2 {[%emt 0:00:37]} g6 {[%emt 0:00:27]} 7. O-O {[%emt 0:00:18]} Bg7 {[%emt 0:00:09]} 8. Nb3 {[%emt 0:01:05]} O-O {[%emt 0:01:49]} 9. Bg5 {[%emt 0:02:34]} a6 {[%emt 0:04:08]} 10. f4 {[%emt 0:08:16]} b5 {[%emt 0:02:00]} 11. Bf3 {[%emt 0:02:03]} Bb7 {[%emt 0:01:46]} 12. Nd5 {[%emt 0:07:37]} Nxd5 {[%emt 0:02:26]} 13. exd5 {[%emt 0:00:49]} Na5 {[%emt 0:00:25]} 14. c3 {[%emt 0:07:51]} Nc4 {[%emt 0:01:04]} 15. Qe2 {[%emt 0:00:54]} Qb6+ {[%emt 0:23:43]} 16. Qf2 {[%emt 0:03:29]} Qxf2+ {[%emt 0:04:43]} 17. Rxf2 {[%emt 0:04:50]} f6 {[%emt 0:00:01]} 18. Bh4 {[%emt 0:00:06]} Bh6 {[%emt 0:00:03]} 19. Bg3 {[%emt 0:03:38]} g5 {[%emt 0:00:33]} 20. fxg5 {[%emt 0:01:30]} Bxg5 {[%emt 0:00:08]} 21. Re2 {[%emt 0:00:46]} Rf7 {[%emt 0:10:43]} 22. a4 {[%emt 0:12:20]} Nb6 {[%emt 0:13:15]} 23. axb5 {[%emt 0:00:29]} axb5 {[%emt 0:00:17]} 24. Rxa8+ {[%emt 0:00:06]} Bxa8 {[%emt 0:00:02]} 25. Nd4 {[%emt 0:03:21]} Bxd5 {[%emt 0:00:06]} 26. Bxd5 {[%emt 0:00:21]} Nxd5 {[%emt 0:00:03]} 27. Nxb5 {[%emt 0:00:12]} f5 {[%emt 0:02:01]} 28. c4 {[%emt 0:02:47]} Ne3 {[%emt 0:01:42]} 29. b3 {[%emt 0:01:09]} Rf8 {[%emt 0:01:39]} 30. h4 {[%emt 0:05:08]} Bh6 {[%emt 0:00:21]} 31. Bf2 {[%emt 0:00:09]} f4 {[%emt 0:00:09]} 32. Bxe3 {[%emt 0:02:06]} fxe3 {[%emt 0:00:05]} 33. Nd4 {[%emt 0:00:43]} Rf4 {[%emt 0:03:16]} 34. Nf3 {[%emt 0:01:32]} Rf5 {[%emt 0:05:13]} 35. Ra2 {[%emt 0:10:21]} Rc5 {[%emt 0:01:13]} 36. Kf1 {[%emt 0:04:01]} Rc7 {[%emt 0:04:25]} 37. Ke2 {[%emt 0:01:40]} Bg7 {[%emt 0:01:49]} 38. Ra8+ {[%emt 0:02:13]} Kf7 {[%emt 0:00:01]} 39. Rb8 {[%emt 0:00:17]} Bh6 {[%emt 0:00:51]} 40. Ng5+ {[%emt 0:00:00]} Bxg5 {[%emt 0:00:00]} 41. hxg5 {[%emt 0:00:06]} Rc5 {[%emt 0:00:57]} 42. Kxe3 {[%emt 0:02:04]} Rxg5 {[%emt 0:00:16]} 43. Kf3 {[%emt 0:00:09]} Rf5+ {[%emt 0:00:05]} 44. Ke3 {[%emt 0:00:07]} Rg5 {[%emt 0:00:05]} 45. Kf3 {[%emt 0:00:04]} Ra5 {[%emt 0:00:02]} 46. g4 {[%emt 0:06:48]} Ra1 {[%emt 0:00:02]} 47. Rb5 {[%emt 0:01:09]} Rb1 {[%emt 0:00:34]} 48. Kf4 {[%emt 0:06:40]} Kf6 {[%emt 0:00:29]} 49. Rf5+ {[%emt 0:00:40]} Ke6 {[%emt 0:00:14]} 50. Rb5 {[%emt 0:00:05]} h6 {[%emt 0:00:05]} 51. Ke4 {[%emt 0:02:18]} Kd7 {[%emt 0:02:13]} 52. Rb7+ {[%emt 0:03:41]} Ke6 {[%emt 0:00:09]} 53. Rb5 {[%emt 0:00:06]} Re1+ {[%emt 0:00:13]} 54. Kf4 {[%emt 0:00:06]} Kf6 {[%emt 0:00:35]} 55. Rf5+ {[%emt 0:05:42]} Kg6 {[%emt 0:00:05]} 56. Rd5 {[%emt 0:00:14]} Rb1 {[%emt 0:04:58]} 57. c5 {[%emt 0:01:34]} e5+ {[%emt 0:00:40]} 58. Ke4 {[%emt 0:00:52]} Re1+ {[%emt 0:00:03]} 59. Kf3 {[%emt 0:00:54]} dxc5 {[%emt 0:00:10]} 60. Rxc5 {[%emt 0:00:09]} Kg5 {[%emt 0:00:02]} 61. Rc4 {[%emt 0:01:21]} Rf1+ {[%emt 0:01:26]} 62. Ke4 {[%emt 0:02:02]} Kxg4 {[%emt 0:00:39]} 63. Kxe5+ {[%emt 0:00:05]} Kg5 {[%emt 0:00:07]} 64. Rc2 {[%emt 0:02:08]} h5 {[%emt 0:00:34]} 65. Rg2+ {[%emt 0:01:46]} Kh4 {[%emt 0:00:01]} 66. Kd5 {[%emt 0:00:29]} Kh3 {[%emt 0:00:06]} 67. Rg8 {[%emt 0:00:04]} Rf4 {[%emt 0:00:31]} 68. Kc5 {[%emt 0:00:49]} Rg4 {[%emt 0:00:04]} 69. Rh8 {[%emt 0:00:25]} h4 {[%emt 0:00:04]} 70. b4 {[%emt 0:00:04]} Kg2 {[%emt 0:00:10]} 71. b5 {[%emt 0:00:08]} h3 {[%emt 0:00:05]} 72. b6 {[%emt 0:00:13]} Rg7 {[%emt 0:00:03]} 73. Kc6 {[%emt 0:00:34]} h2 {[%emt 0:00:06]} 74. Rxh2+ {[%emt 0:00:03]} Kxh2 {[%emt 0:00:04]} 75. b7 {[%emt 0:00:03]} Rg8 {[%emt 0:00:02]} 76. Kc7 {[%emt 0:00:03]} Kg3 {[%emt 0:00:04]} 77. b8=Q {[%emt 0:00:04]} Rxb8 {[%emt 0:00:02]} 78. Kxb8 1/2-1/2

[Event "EYCC Open-U18 2019"]
[Site "Bratislava"]
[Date "2019.08.08"]
[Round "7.12"]
[White "Maksimovic, Bojan"]
[Black "Anghelus, Alin-Gabriel"]
[Result "1-0"]
[ECO "B34"]
[WhiteElo "2326"]
[BlackElo "2107"]
[Annotator "NA"]
[PlyCount "73"]
[EventDate "2019.08.02"]
[EventType "swiss"]
[EventCountry "SVK"]
[SourceTitle "playchess.com"]
[Source "ChessBase"]
[SourceQuality "1"]
[TimeControl "40/5400+30:1800+30"]

1. e4 {[%emt 0:00:00]} c5 {[%emt 0:00:00]} 2. Nf3 {[%emt 0:00:00]} Nc6 {[%emt 0:00:00]} 3. d4 {[%emt 0:00:00]} cxd4 {[%emt 0:00:20]} 4. Nxd4 {[%emt 0:00:00]} g6 {[%emt 0:00:14]} 5. Nc3 {[%emt 0:00:51]} Bg7 {[%emt 0:00:17]} 6. Be3 {[%emt 0:00:14]} Nf6 {[%emt 0:00:08]} 7. Nxc6 {[%emt 0:01:50]} bxc6 {[%emt 0:01:32]} 8. e5 {[%emt 0:00:07]} Ng8 {[%emt 0:00:09]} 9. f4 {[%emt 0:03:09]} Nh6 {[%emt 0:00:56]} 10. Qd2 {[%emt 0:01:00]} Nf5 {[%emt 0:12:57]} 11. Bf2 {[%emt 0:06:01]} d5 {[%emt 0:03:22]} 12. g4 {[%emt 0:07:27]} Nh6 {[%emt 0:00:28]} 13. h3 {[%emt 0:00:17]} Qa5 {[%emt 0:03:48]} 14. Ne4 {[%emt 0:18:24]} Qxd2+ {[%emt 0:00:30]} 15. Nxd2 {[%emt 0:00:01]} f6 {[%emt 0:03:08]} 16. exf6 {[%emt 0:00:54]} exf6 {[%emt 0:00:06]} 17. O-O-O {[%emt 0:02:10]} O-O {[%emt 0:03:16]} 18. Nb3 {[%emt 0:04:25]} Nf7 {[%emt 0:02:00]} 19. c4 {[%emt 0:05:07]} Bh6 {[%emt 0:10:53]} 20. cxd5 {[%emt 0:01:22]} Bxf4+ {[%emt 0:00:42]} 21. Kb1 {[%emt 0:00:06]} f5 {[%emt 0:07:04]} 22. g5 {[%emt 0:16:17]} cxd5 {[%emt 0:05:21]} 23. Bg2 {[%emt 0:00:59]} Bxg5 {[%emt 0:00:40]} 24. Bxd5 {[%emt 0:00:44]} Rb8 {[%emt 0:00:12]} 25. Bxa7 {[%emt 0:04:17]} Rb5 {[%emt 0:01:20]} 26. Rhe1 {[%emt 0:07:55]} Bf6 {[%emt 0:06:51]} 27. Bc5 {[%emt 0:03:54]} Rd8 {[%emt 0:01:09]} 28. a4 {[%emt 0:00:48]} Rb8 {[%emt 0:02:08]} 29. Be7 {[%emt 0:03:46]} Bxe7 {[%emt 0:02:48]} 30. Rxe7 {[%emt 0:00:10]} Rxd5 {[%emt 0:01:57]} 31. Re8+ {[%emt 0:00:34]} Kg7 {[%emt 0:00:04]} 32. Rxd5 {[%emt 0:00:06]} Rxb3 {[%emt 0:00:42]} 33. Rxc8 {[%emt 0:00:06]} f4 {[%emt 0:00:56]} 34. a5 {[%emt 0:01:13]} f3 {[%emt 0:01:02]} 35. Ka2 {[%emt 0:02:43]} f2 {[%emt 0:04:35]} 36. Rc1 {[%emt 0:00:24]} Re3 {[%emt 0:01:37]} 37. Rf1 {[%emt 0:00:17]} 1-0

[Event "EYCC Open-U18 2019"]
[Site "Bratislava"]
[Date "2019.08.08"]
[Round "7.13"]
[White "Chatzieleftheriou, Andreas"]
[Black "Van Foreest, Lucas"]
[Result "1-0"]
[ECO "B51"]
[WhiteElo "2208"]
[BlackElo "2521"]
[Annotator "ChessBase"]
[PlyCount "121"]
[EventDate "2019.08.02"]
[EventType "swiss"]
[EventCountry "SVK"]
[SourceTitle "playchess.com"]
[Source "ChessBase"]
[SourceQuality "1"]
[TimeControl "40/5400+30:1800+30"]

1. e4 {[%emt 0:00:00]} c5 {[%emt 0:00:00]} 2. Nf3 {[%emt 0:00:00]} d6 {[%emt 0:00:00]} 3. Bb5+ {[%emt 0:00:41]} Nd7 {[%emt 0:00:00]} 4. a4 {[%emt 0:01:12]} Ngf6 {[%emt 0:04:42]} 5. Nc3 {[%emt 0:00:51]} g6 {[%emt 0:04:20]} 6. a5 {[%emt 0:09:27]} Bg7 {[%emt 0:01:26]} 7. a6 {[%emt 0:02:40]} O-O {[%emt 0:00:52]} 8. O-O {[%emt 0:00:43]} Qc7 {[%emt 0:08:31]} 9. Re1 {[%emt 0:04:48]} bxa6 {[%emt 0:02:10]} 10. Bxa6 {[%emt 0:01:15]} Bxa6 {[%emt 0:00:39]} 11. Rxa6 {[%emt 0:00:16]} Nb8 {[%emt 0:00:26]} 12. Ra4 {[%emt 0:16:10]} Nc6 {[%emt 0:00:10]} 13. b3 {[%emt 0:05:23]} Qb7 {[%emt 0:00:39]} 14. Bb2 {[%emt 0:03:06]} Nd7 {[%emt 0:00:30]} 15. d3 {[%emt 0:02:03]} f5 {[%emt 0:10:06]} 16. Qe2 {[%emt 0:14:15]} Nde5 {[%emt 0:04:59]} 17. Nxe5 {[%emt 0:03:32]} Bxe5 {[%emt 0:02:17]} 18. Nd1 {[%emt 0:01:53]} f4 {[%emt 0:01:37]} 19. f3 {[%emt 0:02:56]} Nd4 {[%emt 0:00:03]} 20. Bxd4 {[%emt 0:02:21]} Bxd4+ {[%emt 0:00:04]} 21. Kh1 {[%emt 0:00:26]} Rfc8 {[%emt 0:05:13]} 22. Qd2 {[%emt 0:01:48]} g5 {[%emt 0:00:23]} 23. Nc3 {[%emt 0:01:27]} Rc6 {[%emt 0:08:52]} 24. Ne2 {[%emt 0:01:50]} Bf6 {[%emt 0:00:20]} 25. g3 {[%emt 0:01:17]} fxg3 {[%emt 0:00:39]} 26. hxg3 {[%emt 0:00:45]} Rf8 {[%emt 0:00:46]} 27. Kg2 {[%emt 0:00:35]} Ra6 {[%emt 0:01:02]} 28. Rxa6 {[%emt 0:01:11]} Qxa6 {[%emt 0:00:31]} 29. e5 {[%emt 0:00:16]} Bxe5 {[%emt 0:04:35]} 30. Qxg5+ {[%emt 0:00:07]} Kh8 {[%emt 0:07:17]} 31. Qxe7 {[%emt 0:03:59]} Qc8 {[%emt 0:00:23]} 32. Rh1 {[%emt 0:01:48]} Qf5 {[%emt 0:00:07]} 33. f4 {[%emt 0:01:33]} Bg7 {[%emt 0:00:21]} 34. Qe4 {[%emt 0:00:51]} d5 {[%emt 0:01:23]} 35. Qxf5 {[%emt 0:00:21]} Rxf5 {[%emt 0:00:03]} 36. g4 {[%emt 0:00:53]} Rf8 {[%emt 0:01:17]} 37. Rh5 {[%emt 0:00:20]} Rd8 {[%emt 0:00:01]} 38. Kf3 {[%emt 0:01:42]} Kg8 {[%emt 0:00:01]} 39. Rf5 {[%emt 0:00:54]} c4 {[%emt 0:00:05]} 40. d4 {[%emt 0:00:00]} cxb3 {[%emt 0:00:00]} 41. cxb3 {[%emt 0:11:01]} Bf8 {[%emt 0:03:23]} 42. Ke3 {[%emt 0:03:09]} a5 {[%emt 0:11:53]} 43. Kd3 {[%emt 0:04:13]} Rb8 {[%emt 0:00:18]} 44. Kc2 {[%emt 0:00:41]} Rc8+ {[%emt 0:03:50]} 45. Kb2 {[%emt 0:00:29]} Bb4 {[%emt 0:00:22]} 46. Rxd5 {[%emt 0:00:45]} Rc6 {[%emt 0:00:04]} 47. g5 {[%emt 0:17:58]} h6 {[%emt 0:00:06]} 48. gxh6 {[%emt 0:00:11]} Rxh6 {[%emt 0:00:02]} 49. Kc2 {[%emt 0:00:28]} Rh3 {[%emt 0:00:32]} 50. Rg5+ {[%emt 0:01:01]} Kf7 {[%emt 0:00:27]} 51. Rg3 {[%emt 0:00:07]} Rh2 {[%emt 0:02:19]} 52. Re3 {[%emt 0:01:59]} Kf6 {[%emt 0:00:45]} 53. Kd3 {[%emt 0:00:15]} Kf5 {[%emt 0:00:21]} 54. d5 {[%emt 0:02:04]} Rh8 {[%emt 0:01:07]} 55. Re5+ {[%emt 0:02:52]} Kg4 {[%emt 0:00:20]} 56. Ke4 {[%emt 0:01:02]} Kh4 {[%emt 0:02:09]} 57. Nd4 {[%emt 0:00:46]} Kg3 {[%emt 0:00:43]} 58. Nf5+ {[%emt 0:00:23]} Kf2 {[%emt 0:00:01]} 59. d6 {[%emt 0:00:48]} Rd8 {[%emt 0:00:03]} 60. Rd5 {[%emt 0:00:21]} Re8+ {[%emt 0:01:32]} 61. Kd3 {[%emt 0:00:08]} 1-0

[Event "EYCC Open-U18 2019"]
[Site "Bratislava"]
[Date "2019.08.08"]
[Round "7.14"]
[White "Martinez Fernandez, Adrian"]
[Black "Gaifullin, Artur"]
[Result "0-1"]
[ECO "B06"]
[WhiteElo "2311"]
[BlackElo "2453"]
[Annotator "ChessBase"]
[PlyCount "144"]
[EventDate "2019.08.02"]
[EventType "swiss"]
[EventCountry "SVK"]
[SourceTitle "playchess.com"]
[Source "ChessBase"]
[SourceQuality "1"]
[TimeControl "40/5400+30:1800+30"]

1. e4 {[%emt 0:00:00]} g6 {[%emt 0:00:00]} 2. d4 {[%emt 0:00:08]} Bg7 {[%emt 0:00:00]} 3. Nc3 {[%emt 0:02:53]} d6 {[%emt 0:00:00]} 4. Be3 {[%emt 0:00:26]} a6 {[%emt 0:00:00]} 5. Qd2 {[%emt 0:00:58]} b5 {[%emt 0:00:00]} 6. h4 {[%emt 0:03:14]} h6 {[%emt 0:00:03]} 7. O-O-O {[%emt 0:02:30]} Bb7 {[%emt 0:00:09]} 8. f3 {[%emt 0:00:44]} Nd7 {[%emt 0:00:04]} 9. d5 {[%emt 0:06:43]} Ngf6 {[%emt 0:04:46]} 10. Nce2 {[%emt 0:03:58]} Ne5 {[%emt 0:07:32]} 11. Ng3 {[%emt 0:03:00]} h5 {[%emt 0:02:00]} 12. Nh3 {[%emt 0:00:34]} Rc8 {[%emt 0:03:17]} 13. Ng5 {[%emt 0:02:34]} c6 {[%emt 0:02:34]} 14. dxc6 {[%emt 0:00:30]} Nxc6 {[%emt 0:00:21]} 15. Ne2 {[%emt 0:01:23]} Qc7 {[%emt 0:05:10]} 16. Kb1 {[%emt 0:03:52]} Nd7 {[%emt 0:00:44]} 17. Nf4 {[%emt 0:02:51]} Qa5 {[%emt 0:31:27]} 18. Qxa5 {[%emt 0:14:42]} Nxa5 {[%emt 0:00:02]} 19. Nd5 {[%emt 0:00:22]} Nc4 {[%emt 0:05:01]} 20. Bd4 {[%emt 0:05:28]} Bxd4 {[%emt 0:04:54]} 21. Rxd4 {[%emt 0:00:07]} Nde5 {[%emt 0:02:37]} 22. Bxc4 {[%emt 0:04:34]} Nxc4 {[%emt 0:00:24]} 23. Re1 {[%emt 0:00:54]} Rc5 {[%emt 0:05:07]} 24. Ne3 {[%emt 0:05:51]} Ne5 {[%emt 0:01:51]} 25. f4 {[%emt 0:05:24]} Ng4 {[%emt 0:02:16]} 26. Nf1 {[%emt 0:09:51]} O-O {[%emt 0:02:08]} 27. Nd2 {[%emt 0:01:02]} Rfc8 {[%emt 0:05:47]} 28. c3 {[%emt 0:00:52]} R5c7 {[%emt 0:00:08]} 29. Ndf3 {[%emt 0:02:18]} Rc4 {[%emt 0:02:38]} 30. Nd2 {[%emt 0:06:09]} R4c5 {[%emt 0:01:31]} 31. g3 {[%emt 0:01:18]} Ba8 {[%emt 0:00:22]} 32. Nf1 {[%emt 0:03:06]} Rc4 {[%emt 0:01:05]} 33. Nd2 {[%emt 0:00:19]} R4c5 {[%emt 0:01:49]} 34. Nf1 {[%emt 0:00:01]} f6 {[%emt 0:01:13]} 35. Ne6 {[%emt 0:01:09]} Rc4 {[%emt 0:00:26]} 36. Rxc4 {[%emt 0:02:21]} Rxc4 {[%emt 0:00:24]} 37. Nd2 {[%emt 0:00:10]} Rc8 {[%emt 0:00:06]} 38. Re2 {[%emt 0:04:26]} Kf7 {[%emt 0:00:38]} 39. Nd4 {[%emt 0:00:02]} e5 {[%emt 0:00:21]} 40. N4f3 {[%emt 0:00:00]} Re8 {[%emt 0:00:00]} 41. fxe5 {[%emt 0:07:19]} dxe5 {[%emt 0:02:54]} 42. Kc2 {[%emt 0:00:11]} Rd8 {[%emt 0:02:08]} 43. Nb3 {[%emt 0:00:48]} Rc8 {[%emt 0:01:06]} 44. a3 {[%emt 0:03:14]} f5 {[%emt 0:02:35]} 45. Ng5+ {[%emt 0:02:14]} Kf6 {[%emt 0:00:03]} 46. Nh7+ {[%emt 0:01:40]} Kg7 {[%emt 0:01:33]} 47. Ng5 {[%emt 0:00:01]} Kf6 {[%emt 0:05:03]} 48. Nh7+ {[%emt 0:00:02]} Ke7 {[%emt 0:00:04]} 49. Ng5 {[%emt 0:00:08]} Rf8 {[%emt 0:01:36]} 50. exf5 {[%emt 0:02:05]} gxf5 {[%emt 0:00:33]} 51. Nc5 {[%emt 0:00:28]} a5 {[%emt 0:01:17]} 52. Nce6 {[%emt 0:02:46]} Rb8 {[%emt 0:02:16]} 53. Nd4 {[%emt 0:04:35]} Kf6 {[%emt 0:00:11]} 54. Nb3 {[%emt 0:00:02]} a4 {[%emt 0:02:26]} 55. Nc5 {[%emt 0:00:01]} Rd8 {[%emt 0:00:15]} 56. b3 {[%emt 0:04:20]} axb3+ {[%emt 0:01:33]} 57. Nxb3 {[%emt 0:00:02]} Bd5 {[%emt 0:01:05]} 58. Nc5 {[%emt 0:00:48]} Bc4 {[%emt 0:03:08]} 59. Re1 {[%emt 0:00:01]} Rd5 {[%emt 0:01:02]} 60. Nce6 {[%emt 0:02:00]} Nf2 {[%emt 0:03:26]} 61. Nc7 {[%emt 0:01:24]} Rd8 {[%emt 0:00:27]} 62. Nh7+ {[%emt 0:00:09]} Kg6 {[%emt 0:02:25]} 63. Ng5 {[%emt 0:00:44]} Nd3 {[%emt 0:02:20]} 64. Re3 {[%emt 0:00:01]} e4 {[%emt 0:01:16]} 65. Nce6 {[%emt 0:04:18]} Ra8 {[%emt 0:00:08]} 66. Nf4+ {[%emt 0:00:19]} Nxf4 {[%emt 0:00:02]} 67. gxf4 {[%emt 0:00:01]} Rxa3 {[%emt 0:00:10]} 68. Rg3 {[%emt 0:00:02]} Kh6 {[%emt 0:00:21]} 69. Kd2 {[%emt 0:01:09]} b4 {[%emt 0:00:17]} 70. Nh3 {[%emt 0:01:20]} b3 {[%emt 0:00:23]} 71. Rg1 {[%emt 0:01:32]} Ra2+ {[%emt 0:00:35]} 72. Kc1 {[%emt 0:00:50]} Bd3 {[%emt 0:00:09]} 0-1

[Event "EYCC Open-U18 2019"]
[Site "Bratislava"]
[Date "2019.08.08"]
[Round "7.15"]
[White "Heimisson, Hilmir Freyr"]
[Black "Miesbauer, Jan"]
[Result "0-1"]
[ECO "A37"]
[WhiteElo "2279"]
[BlackElo "2409"]
[Annotator "NA"]
[PlyCount "114"]
[EventDate "2019.08.02"]
[EventType "swiss"]
[EventCountry "SVK"]
[SourceTitle "playchess.com"]
[Source "ChessBase"]
[SourceQuality "1"]
[TimeControl "40/5400+30:1800+30"]

1. c4 {[%emt 0:00:00]} c5 {[%emt 0:00:00]} 2. g3 {[%emt 0:00:00]} Nc6 {[%emt 0:00:00]} 3. Bg2 {[%emt 0:00:00]} g6 {[%emt 0:00:00]} 4. Nc3 {[%emt 0:00:04]} Bg7 {[%emt 0:00:07]} 5. Nf3 {[%emt 0:00:17]} e5 {[%emt 0:00:36]} 6. O-O {[%emt 0:04:59]} d6 {[%emt 0:00:18]} 7. Ne1 {[%emt 0:16:01]} Be6 {[%emt 0:00:25]} 8. Nd5 {[%emt 0:05:24]} Nge7 {[%emt 0:00:51]} 9. Nc2 {[%emt 0:01:53]} O-O {[%emt 0:01:14]} 10. a3 {[%emt 0:02:17]} a5 {[%emt 0:00:34]} 11. Rb1 {[%emt 0:01:11]} Rb8 {[%emt 0:05:56]} 12. b4 {[%emt 0:17:53]} b5 {[%emt 0:05:26]} 13. bxc5 {[%emt 0:02:27]} bxc4 {[%emt 0:01:10]} 14. Rxb8 {[%emt 0:07:18]} Qxb8 {[%emt 0:00:07]} 15. Nce3 {[%emt 0:00:48]} Nxd5 {[%emt 0:04:13]} 16. Nxd5 {[%emt 0:02:46]} Qb5 {[%emt 0:01:42]} 17. d3 {[%emt 0:07:10]} cxd3 {[%emt 0:03:13]} 18. Qxd3 {[%emt 0:01:10]} Qxd3 {[%emt 0:02:00]} 19. exd3 {[%emt 0:00:04]} dxc5 {[%emt 0:00:13]} 20. Be3 {[%emt 0:00:42]} Nd4 {[%emt 0:00:44]} 21. Bxd4 {[%emt 0:01:09]} cxd4 {[%emt 0:00:30]} 22. Ne7+ {[%emt 0:01:54]} Kh8 {[%emt 0:00:06]} 23. Rb1 {[%emt 0:00:23]} Re8 {[%emt 0:11:52]} 24. Bd5 {[%emt 0:10:08]} Bxd5 {[%emt 0:11:06]} 25. Nxd5 {[%emt 0:00:05]} Bf8 {[%emt 0:09:25]} 26. Rb5 {[%emt 0:02:45]} a4 {[%emt 0:01:52]} 27. Ra5 {[%emt 0:02:05]} Rd8 {[%emt 0:08:35]} 28. Nb6 {[%emt 0:05:23]} e4 {[%emt 0:08:17]} 29. Kf1 {[%emt 0:03:18]} exd3 {[%emt 0:02:18]} 30. Rxa4 {[%emt 0:02:36]} Rb8 {[%emt 0:02:40]} 31. Nc4 {[%emt 0:01:16]} Rb1+ 32. Kg2 Bc5 {[%emt 0:05:44]} 33. Kf3 {[%emt 0:01:52]} Rc1 {[%emt 0:01:16]} 34. Nd2 {[%emt 0:00:55]} Rc2 {[%emt 0:01:10]} 35. Nb3 {[%emt 0:00:14]} d2 {[%emt 0:02:21]} 36. Ke2 {[%emt 0:00:37]} d3+ {[%emt 0:00:26]} 37. Kd1 {[%emt 0:00:17]} Bxf2 {[%emt 0:00:23]} 38. Ra8+ {[%emt 0:00:28]} Kg7 {[%emt 0:00:05]} 39. Rd8 {[%emt 0:00:51]} Be3 {[%emt 0:01:26]} 40. Rxd3 {[%emt 0:00:00]} Rc1+ {[%emt 0:00:00]} 41. Ke2 {[%emt 0:00:46]} Re1+ {[%emt 0:00:14]} 42. Kf3 {[%emt 0:01:10]} d1=Q+ {[%emt 0:00:52]} 43. Rxd1 {[%emt 0:00:04]} Rxd1 {[%emt 0:00:08]} 44. Kxe3 {[%emt 0:00:02]} Rb1 {[%emt 0:02:06]} 45. Nc5 {[%emt 0:00:15]} Ra1 {[%emt 0:00:12]} 46. a4 {[%emt 0:00:08]} f5 {[%emt 0:00:28]} 47. Kd4 {[%emt 0:00:20]} Kf6 {[%emt 0:00:23]} 48. Kc4 {[%emt 0:00:29]} g5 {[%emt 0:00:28]} 49. Kb5 {[%emt 0:00:35]} f4 {[%emt 0:00:15]} 50. gxf4 {[%emt 0:00:05]} gxf4 {[%emt 0:00:06]} 51. a5 {[%emt 0:00:15]} f3 {[%emt 0:01:10]} 52. a6 {[%emt 0:00:13]} Ke5 {[%emt 0:00:55]} 53. Nd3+ {[%emt 0:01:28]} Kd4 {[%emt 0:01:09]} 54. Nf2 {[%emt 0:00:07]} Ra2 {[%emt 0:00:25]} 55. Ng4 {[%emt 0:01:29]} f2 {[%emt 0:00:22]} 56. Nxf2 {[%emt 0:00:03]} Rxf2 {[%emt 0:00:04]} 57. a7 {[%emt 0:00:22]} Ra2 {[%emt 0:00:07]} 0-1

[Event "EYCC Open-U18 2019"]
[Site "Bratislava"]
[Date "2019.08.08"]
[Round "7.16"]
[White "Travadon, Loic"]
[Black "Stevanic, David"]
[Result "1-0"]
[ECO "A05"]
[WhiteElo "2403"]
[BlackElo "2306"]
[Annotator "NA"]
[PlyCount "138"]
[EventDate "2019.08.02"]
[EventType "swiss"]
[EventCountry "SVK"]
[SourceTitle "playchess.com"]
[Source "ChessBase"]
[SourceQuality "1"]
[TimeControl "40/5400+30:1800+30"]

1. Nf3 {[%emt 0:00:00]} Nf6 {[%emt 0:00:00]} 2. c4 {[%emt 0:00:00]} g6 {[%emt 0:00:00]} 3. Nc3 {[%emt 0:00:00]} d6 {[%emt 0:00:30]} 4. d4 {[%emt 0:00:00]} Bg7 {[%emt 0:00:07]} 5. e4 {[%emt 0:00:07]} O-O {[%emt 0:00:11]} 6. h3 {[%emt 0:00:02]} e5 {[%emt 0:01:41]} 7. d5 {[%emt 0:00:04]} a5 {[%emt 0:05:11]} 8. g4 {[%emt 0:00:09]} Na6 {[%emt 0:02:14]} 9. Be3 {[%emt 0:00:05]} Kh8 {[%emt 0:08:11]} 10. Nd2 {[%emt 0:01:55]} Ng8 {[%emt 0:07:13]} 11. h4 {[%emt 0:00:57]} f5 {[%emt 0:01:11]} 12. exf5 {[%emt 0:00:49]} gxf5 {[%emt 0:00:14]} 13. gxf5 {[%emt 0:00:06]} Bxf5 {[%emt 0:01:03]} 14. Nde4 {[%emt 0:01:24]} Nc5 {[%emt 0:10:18]} 15. Nxc5 {[%emt 0:10:53]} dxc5 {[%emt 0:00:05]} 16. Qd2 {[%emt 0:00:41]} Nf6 {[%emt 0:03:36]} 17. O-O-O {[%emt 0:03:07]} Ne4 {[%emt 0:10:38]} 18. Nxe4 {[%emt 0:00:27]} Bxe4 {[%emt 0:00:05]} 19. Rh3 {[%emt 0:20:05]} Bf3 {[%emt 0:17:20]} 20. Be2 {[%emt 0:00:30]} e4 {[%emt 0:01:36]} 21. Bxc5 {[%emt 0:06:34]} Qf6 {[%emt 0:01:16]} 22. Bxf3 {[%emt 0:02:40]} exf3 {[%emt 0:00:26]} 23. Bd4 {[%emt 0:17:18]} Qxd4 {[%emt 0:00:29]} 24. Qxd4 {[%emt 0:00:01]} Bxd4 {[%emt 0:00:06]} 25. Rxd4 {[%emt 0:00:02]} Rae8 {[%emt 0:00:32]} 26. Kc2 {[%emt 0:01:06]} a4 {[%emt 0:06:29]} 27. Rd2 {[%emt 0:06:20]} Rf4 {[%emt 0:09:20]} 28. b3 {[%emt 0:01:52]} a3 {[%emt 0:01:25]} 29. Rg3 {[%emt 0:00:24]} b5 {[%emt 0:06:00]} 30. cxb5 {[%emt 0:00:25]} Rb8 {[%emt 0:01:18]} 31. d6 {[%emt 0:00:19]} cxd6 {[%emt 0:01:19]} 32. Rxd6 {[%emt 0:00:08]} Rxh4 {[%emt 0:02:05]} 33. Rxf3 {[%emt 0:00:01]} Rh1 {[%emt 0:01:17]} 34. b4 {[%emt 0:03:41]} Rxb5 {[%emt 0:01:18]} 35. Rxa3 {[%emt 0:00:01]} Rb7 {[%emt 0:01:01]} 36. Rg3 {[%emt 0:00:44]} Rb8 {[%emt 0:00:57]} 37. a3 {[%emt 0:00:21]} Rf1 {[%emt 0:00:35]} 38. Rf3 {[%emt 0:00:09]} Rc8+ {[%emt 0:00:37]} 39. Kb3 {[%emt 0:00:16]} Ra8 {[%emt 0:00:30]} 40. Rd7 {[%emt 0:00:00]} Rb1+ {[%emt 0:00:00]} 41. Ka2 {[%emt 0:01:11]} Rxb4 {[%emt 0:03:12]} 42. Rh3 {[%emt 0:00:55]} Kg8 {[%emt 0:02:33]} 43. Rdxh7 {[%emt 0:02:24]} Ra5 {[%emt 0:02:56]} 44. R7h5 {[%emt 0:03:24]} Rxh5 {[%emt 0:05:51]} 45. Rg3+ {[%emt 0:00:31]} Rg4 {[%emt 0:05:35]} 46. Rxg4+ {[%emt 0:00:28]} Kf7 {[%emt 0:00:07]} 47. Rf4+ {[%emt 0:00:23]} Ke6 {[%emt 0:00:12]} 48. a4 {[%emt 0:00:32]} Kd6 {[%emt 0:00:50]} 49. Kb3 {[%emt 0:00:52]} Kc5 {[%emt 0:01:05]} 50. Rc4+ {[%emt 0:00:14]} Kb6 {[%emt 0:00:22]} 51. f4 {[%emt 0:00:18]} Rh1 {[%emt 0:00:26]} 52. Kc3 {[%emt 0:00:21]} Rd1 {[%emt 0:03:05]} 53. Kc2 {[%emt 0:00:17]} Rd5 {[%emt 0:02:18]} 54. Kc3 {[%emt 0:00:31]} Rd1 {[%emt 0:00:13]} 55. Rd4 {[%emt 0:00:04]} Rf1 {[%emt 0:00:52]} 56. Rb4+ {[%emt 0:01:56]} Ka5 {[%emt 0:01:59]} 57. Re4 {[%emt 0:00:12]} Rd1 {[%emt 0:01:31]} 58. f5 {[%emt 0:00:31]} Rf1 {[%emt 0:00:19]} 59. Re5+ {[%emt 0:00:01]} Kxa4 {[%emt 0:00:12]} 60. Kc4 {[%emt 0:00:18]} Rf2 {[%emt 0:01:05]} 61. Kc5 {[%emt 0:00:45]} Ka5 {[%emt 0:00:40]} 62. Kd6+ {[%emt 0:00:10]} Kb6 {[%emt 0:00:07]} 63. Ke7 {[%emt 0:00:04]} Ra2 {[%emt 0:01:24]} 64. f6 {[%emt 0:00:09]} Ra7+ {[%emt 0:00:05]} 65. Ke6 {[%emt 0:00:09]} Kc6 {[%emt 0:00:34]} 66. f7 {[%emt 0:00:06]} Ra8 {[%emt 0:00:11]} 67. Ke7 {[%emt 0:00:05]} Ra7+ {[%emt 0:00:21]} 68. Kf6 {[%emt 0:00:06]} Ra8 {[%emt 0:00:13]} 69. Re8 {[%emt 0:00:06]} Kd5 1-0